bitfinex/quotes_SOLUSD_20250722
["timestamp","ask_amount","ask_price","bid_price","bid_amount"]
[1753176230838,28.72166977,195.29,195.28,0.03]
[1753176232059,33.84225966,195.29,195.28,0.03]
[1753176234853,33.15225966,195.29,195.28,0.03]
[1753176235251,33.15225966,195.29,195.28,3.23193877]
[1753176235457,11.2469858,195.29,195.28,3.23193877]
[1753176235658,16.78468397,195.31,195.28,3.23193877]
[1753176235868,11.2469858,195.29,195.28,0.03]
[1753176236041,11.2469858,195.29,195.28,3.23168733]
[1753176236763,11.9369858,195.29,195.28,3.23168733]
[1753176237867,54.75757569,195.29,195.28,3.23168733]
[1753176238168,71.54225966,195.29,195.28,3.23168733]
[1753176239881,16.78468397,195.28,195.26,0.03]
[1753176240088,28.03166977,195.27,195.26,0.03]
[1753176240376,28.72166977,195.27,195.26,0.03]
[1753176240582,4.9,195.32,195.29,26.0]
[1753176240795,0.06,195.36,195.31,11.2469858]
[1753176240947,0.06,195.36,195.34,11.2469858]
[1753176241149,0.06,195.36,195.33,11.2469858]
[1753176241463,0.06,195.36,195.33,0.71]
[1753176241779,16.78468397,195.33,195.28,0.71]
[1753176241980,11.2469858,195.3,195.28,5.12080832]
[1753176242351,11.2469858,195.31,195.28,5.12080832]
[1753176242552,11.2469858,195.31,195.27,37.46454612]
[1753176243079,11.2469858,195.29,195.27,26.0]
[1753176243381,11.2469858,195.29,195.26,26.03]
[1753176244767,11.2469858,195.27,195.26,0.03]
[1753176245067,65.73166977,195.27,195.26,0.03]
[1753176245267,66.42166977,195.27,195.26,0.03]
[1753176245974,65.73166977,195.27,195.26,0.03]
[1753176246177,71.54278412,195.27,195.26,0.03]
[1753176247490,65.73166977,195.27,195.26,0.03]
[1753176247874,11.2469858,195.28,195.26,0.03]
[1753176248190,11.2469858,195.29,195.26,0.03]
[1753176248486,11.2469858,195.28,195.26,0.03]
[1753176249067,11.2469858,195.29,195.26,0.03]
[1753176249478,54.48468397,195.31,195.26,0.03]
[1753176249674,11.2469858,195.29,195.26,0.03]
[1753176250285,16.78468397,195.32,195.27,0.67]
[1753176250474,28.03166977,195.32,195.27,0.67]
[1753176251281,24.33377842,195.32,195.27,0.67]
[1753176251590,24.33377842,195.32,195.27,5.7909188]
[1753176252310,7.54909445,195.31,195.26,5.15132495]
[1753176252473,7.54909445,195.3,195.26,5.15132495]
[1753176253382,7.54909445,195.32,195.27,5.79111435]
[1753176253688,7.54909445,195.35,195.29,7.54909445]
[1753176254264,0.06,195.36,195.3,8.21909445]
[1753176254465,0.06,195.36,195.31,7.54909445]
[1753176254873,0.06,195.36,195.32,0.67]
[1753176255071,0.06,195.36,195.33,0.67]
[1753176255272,0.06,195.36,195.33,8.21909445]
[1753176255576,0.06,195.36,195.35,5.11901714]
[1753176255980,0.06,195.36,195.35,5.78901714]
[1753176256382,0.06,195.36,195.35,13.33811159]
[1753176256578,0.06,195.36,195.35,14.94761159]
[1753176259308,0.06,195.36,195.34,26.0]
[1753176260679,0.06,195.36,195.31,47.51669445]
[1753176260680,8.25909445,195.35,195.31,37.68]
[1753176261102,7.60909445,195.36,195.31,42.80000654]
[1753176261477,8.31909445,195.36,195.31,42.80000654]
[1753176261707,7.60909445,195.36,195.31,43.47000654]
[1753176261905,0.06,195.36,195.32,0.67]
[1753176262108,0.06,195.36,195.32,7.54909445]
[1753176262413,0.06,195.36,195.33,0.67]
[1753176263175,0.06,195.36,195.32,7.54909445]
[1753176263402,0.06,195.36,195.34,0.67]
[1753176263784,0.06,195.36,195.32,31.11979045]
[1753176263984,0.06,195.36,195.32,26.0]
[1753176264187,7.54909445,195.35,195.32,26.0]
[1753176264790,8.25909445,195.34,195.31,37.68]
[1753176265002,7.54909445,195.32,195.31,37.68]
[1753176265192,7.54909445,195.32,195.3,26.0]
[1753176265599,7.54909445,195.32,195.28,5.12079665]
[1753176265915,7.54909445,195.29,195.26,0.03]
[1753176266209,0.71,195.28,195.26,0.03]
[1753176266410,7.54909445,195.27,195.26,0.03]
[1753176266589,0.06,195.36,195.29,26.0]
[1753176266910,0.06,195.36,195.32,7.54909445]
[1753176267094,0.06,195.36,195.31,7.54909445]
[1753176267290,7.60909445,195.36,195.3,38.33]
[1753176267804,0.06,195.36,195.32,7.54909445]
[1753176267988,0.06,195.36,195.34,33.54909445]
[1753176268183,0.06,195.36,195.35,7.54909445]
[1753176268387,0.06,195.36,195.35,8.21909445]
[1753176269081,0.06,195.36,195.35,8.73099616]
[1753176269480,1e-08,195.36,195.35,8.73099616]
[1753176269890,1e-08,195.36,195.35,13.8500133]
[1753176270092,1e-08,195.36,195.35,28.01140775]
[1753176270286,0.06,195.39,195.38,26.0]
[1753176270508,0.06,195.39,195.38,71.72091756]
[1753176270689,0.06,195.39,195.38,72.39091756]
[1753176271504,0.06,195.44,195.38,72.39091756]
[1753176271689,0.06,195.44,195.43,7.54909445]
[1753176271895,0.06,195.44,195.43,50.3260161]
[1753176272102,0.06,195.44,195.43,50.9960161]
[1753176272485,0.06,195.44,195.43,50.3260161]
[1753176272709,0.06,195.44,195.43,50.9960161]
[1753176273412,0.06,195.44,195.43,42.77692165]
[1753176273599,0.06,195.44,195.43,50.3260161]
[1753176273800,0.06,195.44,195.43,37.66]
[1753176273999,0.06,195.44,195.42,38.66623639]
[1753176274606,0.06,195.44,195.43,7.54909445]
[1753176274789,0.77,195.44,195.38,7.54909445]
[1753176274993,0.77,195.44,195.39,5.11796918]
[1753176275517,0.77,195.44,195.39,12.66706363]
[1753176275913,0.06,195.44,195.39,7.54909445]
[1753176276097,0.71,195.43,195.38,38.66731585]
[1753176276297,0.77,195.44,195.39,7.54909445]
[1753176276612,8.25909445,195.43,195.37,5.11848774]
[1753176276814,7.54909445,195.41,195.35,12.66786141]
[1753176277219,8.25909445,195.4,195.35,5.11876696]
[1753176277424,0.71,195.39,195.35,5.11876696]
[1753176277601,7.54909445,195.42,195.36,7.54909445]
[1753176277806,0.71,195.43,195.36,8.21909445]
[1753176278009,7.54909445,195.42,195.36,8.21909445]
[1753176278525,0.71,195.43,195.38,33.54909445]
[1753176278719,0.06,195.44,195.39,8.21909445]
[1753176279213,0.06,195.44,195.4,5.11770726]
[1753176279808,0.06,195.44,195.38,26.0]
[1753176279809,7.54909445,195.42,195.38,26.0]
[1753176280021,7.54909445,195.4,195.35,31.11895625]
[1753176280201,8.21909445,195.4,195.35,31.11895625]
[1753176280921,7.54909445,195.38,195.35,26.0]
[1753176281118,8.21909445,195.37,195.32,5.11980339]
[1753176281302,8.21909445,195.37,195.32,31.11980339]
[1753176281707,7.54909445,195.35,195.29,1.5886]
[1753176281927,7.54909445,195.34,195.28,13.36993753]
[1753176282305,7.54909445,195.36,195.3,7.54909445]
[1753176282502,7.54909445,195.36,195.29,7.54909445]
[1753176282805,7.54909445,195.35,195.29,7.54909445]
[1753176283315,7.54909445,195.35,195.3,5.1203277]
[1753176283717,7.54909445,195.35,195.3,5.8203277]
[1753176283928,0.67,195.43,195.33,33.54909445]
[1753176284103,0.67,195.43,195.36,7.54909445]
[1753176284421,0.67,195.46,195.4,7.54909445]
[1753176284724,0.06,195.48,195.41,0.7]
[1753176284912,0.06,195.48,195.41,26.0]
[1753176284913,7.54909445,195.45,195.41,26.0]
[1753176285100,7.54909445,195.46,195.41,26.0]
[1753176285302,7.54909445,195.45,195.38,13.36711104]
[1753176285502,7.54909445,195.45,195.39,7.54909445]
[1753176285903,7.54909445,195.46,195.4,7.54909445]
[1753176286430,7.60909445,195.48,195.42,7.54909445]
[1753176286614,0.06,195.48,195.42,8.24909445]
[1753176286806,0.06,195.48,195.43,8.24909445]
[1753176287201,0.06,195.48,195.43,13.87770826]
[1753176288608,0.06,195.48,195.4,26.0]
[1753176288609,7.54909445,195.46,195.4,26.0]
[1753176288928,0.06,195.48,195.43,26.0]
[1753176289229,0.06,195.48,195.43,33.54909445]
[1753176289714,0.06,195.48,195.43,34.24909445]
[1753176290132,0.06,195.48,195.43,34.76078661]
[1753176290430,0.06,195.48,195.43,39.87770826]
[1753176290628,1e-08,195.44,195.43,41.44830826]
[1753176290839,1e-08,195.44,195.43,58.23299223]
[1753176291010,0.06,195.48,195.43,71.02529637]
[1753176291209,0.06,195.48,195.47,7.54909445]
[1753176291905,1e-08,195.48,195.47,8.24909445]
[1753176292122,1e-08,195.48,195.47,15.0880819]
[1753176292332,1e-08,195.48,195.47,39.42186032]
[1753176292524,1e-08,195.48,195.47,44.53773487]
[1753176292947,0.06,195.52,195.47,40.54273729]
[1753176293138,0.06,195.52,195.51,33.54909445]
[1753176293656,0.06,195.52,195.5,7.54909445]
[1753176293938,0.06,195.52,195.47,12.664969]
[1753176294123,0.73,195.52,195.47,12.664969]
[1753176294520,8.27909445,195.52,195.48,26.0]
[1753176294826,7.54909445,195.49,195.43,12.66600404]
[1753176295026,7.54909445,195.48,195.42,8.24909445]
[1753176295224,7.54909445,195.48,195.42,5.11714584]
[1753176295532,7.54909445,195.48,195.45,26.0]
[1753176295719,0.06,195.52,195.47,7.54909445]
[1753176295909,0.06,195.52,195.46,8.24909445]
[1753176296110,0.06,195.52,195.47,7.54909445]
[1753176296336,0.06,195.52,195.5,7.54909445]
[1753176296519,0.06,195.52,195.5,12.66392311]
[1753176296718,0.06,195.52,195.5,13.36392311]
[1753176297125,0.06,195.52,195.5,12.66392311]
[1753176297746,0.06,195.52,195.51,8.24909445]
[1753176298243,0.06,195.52,195.51,8.76057723]
[1753176298742,0.06,195.52,195.51,13.87540511]
[1753176299140,0.06,195.52,195.51,17.54045]
[1753176300116,0.06,195.52,195.51,6.32631066]
[1753176300417,0.06,195.52,195.48,26.0]
[1753176300615,0.67,195.51,195.42,0.7]
[1753176300815,11.21413934,195.46,195.4,11.21413934]
[1753176301244,11.21413934,195.43,195.37,16.33243509]
[1753176301414,11.21413934,195.42,195.35,0.7]
[1753176301620,0.67,195.47,195.39,11.21413934]
[1753176301821,5.11516718,195.5,195.43,11.21413934]
[1753176302030,16.99930652,195.5,195.43,11.21413934]
[1753176302345,16.99930652,195.5,195.4,0.7]
[1753176302346,11.88413934,195.5,195.44,11.21413934]
[1753176302516,0.06,195.52,195.47,11.21413934]
[1753176302718,0.06,195.52,195.47,16.32981546]
[1753176302925,0.06,195.52,195.48,11.21413934]
[1753176303125,0.06,195.52,195.48,11.91413934]
[1753176303327,0.06,195.52,195.49,11.91413934]
[1753176303820,0.06,195.52,195.49,11.21413934]
[1753176304129,0.06,195.52,195.5,11.91413934]
[1753176304527,0.06,195.52,195.51,37.91413934]
[1753176304731,0.06,195.52,195.51,43.02896722]
[1753176305446,1e-08,195.52,195.51,33.81365119]
[1753176305843,0.2,195.56,195.55,26.0]
[1753176306035,0.2,195.56,195.55,37.7255175]
[1753176306550,0.2,195.59,195.55,40.0916175]
[1753176306722,0.2,195.59,195.58,37.21413934]
[1753176306921,0.2,195.59,195.58,37.72543906]
[1753176307147,0.2,195.59,195.58,38.42543906]
[1753176308757,0.2,195.59,195.58,78.1460596]
[1753176308758,1e-08,195.59,195.58,78.1460596]
[1753176309129,0.2,195.64,195.62,26.0]
[1753176309438,0.2,195.64,195.63,11.72530838]
[1753176309833,0.2,195.64,195.63,12.41530838]
[1753176310730,0.2,195.64,195.63,17.52699881]
[1753176311162,0.2,195.64,195.63,6.31285947]
[1753176311449,0.2,195.64,195.63,17.52699881]
[1753176313164,1e-08,195.64,195.63,34.31168278]
[1753176313379,1e-08,195.64,195.63,17.52699881]
[1753176313534,1e-08,195.64,195.63,6.31285947]
[1753176313735,1e-08,195.64,195.63,17.52699881]
[1753176313935,1e-08,195.64,195.63,42.32582977]
[1753176314343,1e-08,195.64,195.63,43.01582977]
[1753176314543,1e-08,195.64,195.63,17.01582977]
[1753176314771,1e-08,195.64,195.63,17.52699881]
[1753176314962,1e-08,195.64,195.6,0.21161087]
[1753176315290,0.72,195.63,195.61,37.21413934]
[1753176315672,1e-08,195.64,195.61,37.21413934]
[1753176316184,1e-08,195.64,195.63,37.21413934]
[1753176317590,1e-08,195.64,195.63,42.32582977]
[1753176317968,1e-08,195.64,195.63,43.01582977]
[1753176318405,1e-08,195.64,195.63,17.01582977]
[1753176318972,1e-08,195.64,195.63,33.80051374]
[1753176320767,1e-08,195.64,195.63,5.80169043]
[1753176321102,1e-08,195.64,195.6,0.21161087]
[1753176321275,1e-08,195.64,195.63,11.21413934]
[1753176321792,0.72000001,195.64,195.6,11.42575021]
[1753176321995,1e-08,195.64,195.6,11.42575021]
[1753176322207,0.72,195.63,195.6,0.21161087]
[1753176322493,11.21413934,195.61,195.6,0.21161087]
[1753176322693,11.93413934,195.61,195.6,0.21161087]
[1753176323102,28.71882331,195.61,195.6,0.21161087]
[1753176323281,16.78468397,195.6,195.51,11.21413934]
[1753176323596,11.21413934,195.58,195.54,26.0]
[1753176323774,11.93413934,195.57,195.54,26.0]
[1753176323978,11.93413934,195.56,195.49,16.32948406]
[1753176324193,11.21413934,195.54,195.48,0.03]
[1753176324375,11.21413934,195.53,195.48,0.03]
[1753176324581,0.72,195.52,195.5,26.0]
[1753176324984,0.72,195.51,195.5,26.0]
[1753176325285,0.72,195.54,195.5,26.0]
[1753176325989,11.21413934,195.59,195.53,11.21413934]
[1753176326192,11.21413934,195.6,195.54,11.21413934]
[1753176326572,0.72,195.6,195.55,11.21413934]
[1753176326900,0.72,195.63,195.57,11.21413934]
[1753176327199,1e-08,195.64,195.58,11.21413934]
[1753176327493,11.21413934,195.63,195.57,11.21413934]
[1753176327797,11.93413934,195.63,195.57,11.21413934]
[1753176327998,0.72,195.63,195.58,5.11299723]
[1753176328302,1e-08,195.64,195.59,11.21413934]
[1753176329084,1e-08,195.64,195.58,11.21413934]
[1753176329282,11.93413934,195.63,195.57,5.11322787]
[1753176329488,11.93413934,195.63,195.57,16.32736721]
[1753176329692,0.72,195.63,195.58,11.21413934]
[1753176329901,1e-08,195.64,195.59,16.32687516]
[1753176330400,0.72000001,195.64,195.59,16.32687516]
[1753176331777,0.72000001,195.64,195.59,5.11273582]
[1753176332294,1e-08,195.64,195.59,16.32687516]
[1753176332599,11.21413934,195.6,195.51,0.51148278]
[1753176332803,0.72,195.59,195.56,26.0]
[1753176332979,0.72,195.58,195.56,26.0]
[1753176333806,0.72,195.58,195.53,11.21413934]
[1753176333980,0.72,195.57,195.48,13.71478214]
[1753176334179,11.21413934,195.56,195.5,11.21413934]
[1753176334391,11.21413934,195.56,195.49,16.3294905]
[1753176334680,11.93413934,195.55,195.49,16.3294905]
[1753176334893,11.21413934,195.53,195.48,31.35149865]
[1753176335203,0.72,195.52,195.48,31.35149865]
[1753176335586,11.21413934,195.51,195.48,0.03]
[1753176335897,16.78468397,195.5,195.48,0.03]
[1753176336201,27.99882331,195.49,195.48,0.03]
[1753176336378,28.71882331,195.49,195.48,0.03]
[1753176336779,11.93413934,195.49,195.48,0.03]
[1753176336976,11.21413934,195.51,195.48,0.03]
[1753176337176,11.93413934,195.53,195.48,0.03]
[1753176337411,11.21413934,195.56,195.5,11.21413934]
[1753176337580,11.21413934,195.57,195.51,11.21413934]
[1753176337785,0.72,195.62,195.54,11.21413934]
[1753176337984,11.21413934,195.6,195.55,5.11378164]
[1753176338219,11.21413934,195.61,195.55,29.11237508]
[1753176338381,0.72,195.62,195.56,11.90413934]
[1753176338580,11.93413934,195.62,195.56,0.69]
[1753176338810,11.21413934,195.61,195.55,16.32792098]
[1753176339709,16.78468397,195.59,195.51,5.11482788]
[1753176339910,0.72,195.6,195.52,11.21413934]
[1753176340125,11.93413934,195.6,195.54,5.11404316]
[1753176340609,0.72,195.6,195.55,11.21413934]
[1753176340781,11.21413934,195.62,195.55,11.21413934]
[1753176341212,11.21413934,195.61,195.55,11.21413934]
[1753176341906,11.21413934,195.61,195.56,5.11352014]
[1753176342207,0.7,195.63,195.57,11.87413934]
[1753176342416,0.7,195.63,195.58,11.21413934]
[1753176342804,1e-08,195.64,195.59,11.21413934]
[1753176343011,11.21413934,195.63,195.56,16.32765948]
[1753176343316,11.21413934,195.62,195.56,5.11352014]
[1753176344215,11.21413934,195.62,195.56,16.32765948]
[1753176344411,11.21413934,195.58,195.54,5.1139897]
[1753176344589,11.91413934,195.58,195.54,5.1139897]
[1753176344788,5.11196544,195.62,195.54,5.1139897]
[1753176344789,11.21413934,195.59,195.54,5.1139897]
[1753176345111,11.21413934,195.57,195.52,31.11431012]
[1753176345300,11.21413934,195.57,195.52,5.11431012]
[1753176345609,0.7,195.56,195.52,5.11431012]
[1753176345995,11.21413934,195.57,195.52,5.11431012]
[1753176346197,11.91413934,195.57,195.52,5.11431012]
[1753176346410,11.21413934,195.59,195.53,11.87413934]
[1753176346900,11.21413934,195.59,195.53,0.66]
[1753176347101,11.21413934,195.59,195.53,11.87413934]
[1753176347808,11.21413934,195.6,195.53,11.87413934]
[1753176348008,11.21413934,195.6,195.54,5.11404316]
[1753176348202,0.7,195.61,195.54,5.11404316]
[1753176348515,11.21413934,195.58,195.54,5.11404316]
[1753176348712,11.21413934,195.58,195.53,5.11428214]
[1753176348921,11.21413934,195.56,195.52,5.11453102]
[1753176349089,11.21413934,195.56,195.51,5.14479596]
[1753176349288,7.53033689,195.54,195.51,0.03]
[1753176349915,7.53033689,195.52,195.51,0.03]
[1753176350096,12.64490317,195.52,195.51,0.03]
[1753176350296,8.23033689,195.52,195.51,0.03]
[1753176350725,25.01502086,195.52,195.51,0.03]
[1753176350943,0.7,195.52,195.51,0.03]
[1753176351092,7.53033689,195.54,195.51,0.03]
[1753176351413,11.9185795,195.55,195.51,0.03]
[1753176351802,6.6135,195.57,195.51,0.69]
[1753176352106,11.9185795,195.6,195.53,37.2185795]
[1753176352318,6.578,195.63,195.55,11.2185795]
[1753176352527,1e-08,195.64,195.57,11.2185795]
[1753176352528,11.91857951,195.64,195.57,11.2185795]
[1753176353032,11.2185795,195.63,195.57,11.2185795]
[1753176353334,0.70000001,195.64,195.58,11.2185795]
[1753176353541,11.91857951,195.64,195.58,11.2185795]
[1753176354043,11.91857951,195.64,195.59,5.11273582]
[1753176354237,0.7,195.63,195.59,5.11273582]
[1753176354929,0.7,195.62,195.58,5.11299265]
[1753176355130,11.9185795,195.61,195.56,26.0]
[1753176355331,0.7,195.6,195.56,26.0]
[1753176355965,0.7,195.59,195.56,26.0]
[1753176356627,0.7,195.59,195.56,31.11339381]
[1753176356827,16.78468397,195.63,195.56,31.11339381]
[1753176357029,11.2185795,195.61,195.56,31.11339381]
[1753176357224,11.2185795,195.62,195.56,31.11339381]
[1753176357626,11.9185795,195.61,195.56,31.11339381]
[1753176357932,0.7,195.6,195.56,31.11339381]
[1753176358115,0.7,195.6,195.56,26.0]
[1753176358429,11.9185795,195.59,195.55,26.0]
[1753176358636,11.2185795,195.59,195.52,11.2185795]
[1753176358948,0.7,195.58,195.52,11.2185795]
[1753176359329,11.2185795,195.59,195.53,16.33268871]
[1753176359531,11.2185795,195.58,195.53,5.11410921]
[1753176359846,11.2185795,195.59,195.53,5.11410921]
[1753176360058,98.68468398,195.64,195.54,11.2185795]
[1753176360059,11.2185795,195.6,195.54,11.2185795]
[1753176360221,82.60000001,195.64,195.59,11.2185795]
[1753176360422,0.70000001,195.64,195.59,11.2185795]
[1753176360955,11.91857951,195.64,195.57,0.66]
[1753176361153,1e-08,195.64,195.61,11.2185795]
[1753176361918,1e-08,195.64,195.63,11.2185795]
[1753176362323,1e-08,195.64,195.63,11.8785795]
[1753176362944,1e-08,195.64,195.63,0.66]
[1753176364054,11.2185795,195.59,195.53,11.2185795]
[1753176364348,0.7,195.6,195.52,11.2185795]
[1753176364554,0.7,195.6,195.52,5.11456628]
[1753176364555,11.2185795,195.57,195.52,5.11456628]
[1753176364756,11.2185795,195.56,195.51,5.14480144]
[1753176365127,11.2185795,195.52,195.51,0.03]
[1753176365520,11.9185795,195.52,195.51,0.03]
[1753176366625,16.78468397,195.56,195.51,0.03]
[1753176366832,0.7,195.59,195.52,11.2185795]
[1753176367026,11.9185795,195.59,195.52,11.8785795]
[1753176367221,11.2185795,195.58,195.52,11.8785795]
[1753176367631,11.2185795,195.59,195.53,11.2185795]
[1753176367835,11.2185795,195.6,195.54,11.2185795]
[1753176368352,11.2185795,195.6,195.53,16.33288421]
[1753176368567,11.2185795,195.59,195.53,16.33288421]
[1753176368772,0.70000001,195.64,195.57,11.2185795]
[1753176368932,11.91857951,195.64,195.58,11.2185795]
[1753176369261,1e-08,195.64,195.59,3.3337935]
[1753176369436,1e-08,195.64,195.56,0.66]
[1753176369437,11.91857951,195.64,195.6,3.3337935]
[1753176369635,11.91857951,195.64,195.61,3.3337935]
[1753176369858,11.91857951,195.64,195.62,3.3337935]
[1753176370037,11.21857951,195.64,195.63,3.3337935]
[1753176370232,1e-08,195.64,195.63,3.3337935]
[1753176371025,16.78468398,195.64,195.63,3.3337935]
[1753176371169,11.88857951,195.64,195.63,3.3337935]
[1753176371761,11.88857951,195.64,195.6,5.11246922]
[1753176371948,11.88857951,195.64,195.61,3.33389515]
[1753176372149,1e-08,195.64,195.62,3.33389515]
[1753176372334,1e-08,195.64,195.63,3.33328324]
[1753176373450,1e-08,195.64,195.63,4.01328324]
[1753176373653,0.06,195.65,195.63,30.01328324]
[1753176373849,0.06,195.65,195.64,15.23186274]
[1753176374448,0.06,195.65,195.64,8.44471239]
[1753176374753,0.06,195.65,195.64,20.34329189]
[1753176375346,0.06,195.67,195.66,26.0]
[1753176375553,0.06,195.67,195.66,40.55186274]
[1753176375757,0.06,195.67,195.66,41.23186274]
[1753176376357,0.06,195.67,195.66,46.34276941]
[1753176376679,1e-08,195.67,195.66,46.85386007]
[1753176377889,1e-08,195.67,195.66,45.66276941]
[1753176378174,1e-08,195.67,195.66,34.44418991]
[1753176378499,1e-08,195.67,195.66,3.33328324]
[1753176379170,11.88857951,195.67,195.66,3.33328324]
[1753176379352,1e-08,195.67,195.66,8.44418991]
[1753176379554,1e-08,195.67,195.66,3.33328324]
[1753176380167,1e-08,195.67,195.66,8.44418991]
[1753176380844,1e-08,195.67,195.66,3.33328324]
[1753176381046,11.88857951,195.67,195.66,3.33328324]
[1753176381473,0.67000001,195.67,195.66,3.33328324]
[1753176381773,11.88857951,195.67,195.66,3.33328324]
[1753176382547,1e-08,195.67,195.66,4.01328324]
[1753176382871,0.06,195.68,195.66,46.34276941]
[1753176383089,0.06,195.68,195.67,14.55186274]
[1753176383291,0.06,195.68,195.67,3.33328324]
[1753176383447,0.73,195.68,195.67,3.33328324]
[1753176383645,0.06,195.68,195.67,3.33328324]
[1753176384874,0.00573676,195.68,195.67,9.63499325]
[1753176385080,0.00573676,195.68,195.67,20.85357275]
[1753176385451,1e-08,195.69,195.67,20.85357275]
[1753176385656,1e-08,195.69,195.68,31.33654671]
[1753176385959,11.2185795,195.79,195.7,26.0]
[1753176386161,11.2785795,195.76,195.71,3.33328324]
[1753176386362,0.67,195.75,195.72,3.33328324]
[1753176386554,0.67,195.75,195.73,3.33328324]
[1753176386754,0.67,195.75,195.74,3.33328324]
[1753176387571,11.8885795,195.75,195.74,3.33328324]
[1753176387968,33.7818203,195.75,195.74,3.33328324]
[1753176388268,11.8885795,195.75,195.74,3.33328324]
[1753176388474,16.99713633,195.75,195.74,3.33328324]
[1753176389575,0.06,195.76,195.74,3.33328324]
[1753176389776,11.2185795,195.75,195.67,5.11041617]
[1753176389984,0.06,195.76,195.68,3.42952544]
[1753176390162,11.2185795,195.73,195.69,3.42952544]
[1753176390482,0.06,195.76,195.7,3.42952544]
[1753176390680,0.06,195.76,195.71,8.53912638]
[1753176390878,0.06,195.76,195.72,14.64810494]
[1753176391085,0.06,195.76,195.73,3.42952544]
[1753176391258,0.06,195.76,195.74,3.42952544]
[1753176391462,0.06,195.76,195.75,3.42952544]
[1753176392366,0.06,195.76,195.75,4.10952544]
[1753176392681,0.06,195.76,195.75,9.21808227]
[1753176393981,0.06,195.76,195.75,3.42556781]
[1753176394185,11.2785795,195.76,195.75,3.42556781]
[1753176394585,11.2785795,195.76,195.69,11.2185795]
[1753176394785,11.2185795,195.73,195.7,3.42662009]
[1753176395094,17.45468397,195.72,195.71,3.42662009]
[1753176395277,17.45468397,195.72,195.71,3.15662009]
[1753176395667,16.78468397,195.71,195.6,26.68]
[1753176395896,16.78468397,195.69,195.6,26.68]
[1753176396195,16.78468397,195.69,195.61,5.11211193]
[1753176396196,11.2185795,195.65,195.61,5.11211193]
[1753176396494,11.2185795,195.67,195.62,0.68]
[1753176396678,11.2185795,195.67,195.63,0.68]
[1753176397016,11.2185795,195.65,195.6,5.11246002]
[1753176397290,11.2185795,195.65,195.6,5.79246002]
[1753176397499,16.78468397,195.69,195.61,0.68]
[1753176397800,5.10910184,195.73,195.63,26.0]
[1753176398088,16.78468397,195.73,195.65,5.1111679]
[1753176398293,11.2185795,195.71,195.66,0.68]
[1753176398494,11.2185795,195.71,195.67,0.68]
[1753176398694,11.2185795,195.72,195.66,11.2185795]
[1753176398894,11.2185795,195.74,195.68,11.8985795]
[1753176399088,11.2785795,195.76,195.69,11.8985795]
[1753176399391,11.2785795,195.76,195.69,11.2185795]
[1753176399569,0.06,195.76,195.7,0.68]
[1753176399890,0.06,195.76,195.7,11.8985795]
[1753176400101,0.06,195.75,195.71,5.10960094]
[1753176400282,0.06,195.75,195.72,0.68]
[1753176401097,0.06,195.75,195.71,16.32818044]
[1753176401312,0.06,195.75,195.72,0.68]
[1753176401590,0.06,195.75,195.74,11.2185795]
[1753176401767,0.06,195.75,195.73,0.68]
[1753176401965,0.06,195.75,195.74,43.00739731]
[1753176402971,0.06,195.76,195.74,43.51827909]
[1753176403273,0.06,195.76,195.75,11.8985795]
[1753176403773,0.06,195.83,195.78,26.0]
[1753176404076,0.06,195.83,195.81,11.2185795]
[1753176404277,0.06,195.83,195.82,11.2185795]
[1753176404685,0.06,195.83,195.82,11.8985795]
[1753176405414,0.06,195.83,195.82,12.40925256]
[1753176405573,0.06,195.83,195.82,38.40925256]
[1753176405980,11.3185795,195.95,195.87,26.0]
[1753176406283,11.2185795,195.93,195.88,0.68]
[1753176406603,11.2185795,195.91,195.86,26.0]
[1753176406771,0.1,195.95,195.87,11.2185795]
[1753176406976,11.2185795,195.94,195.88,11.2185795]
[1753176407281,0.1,195.95,195.89,15.30799528]
[1753176407475,0.1,195.95,195.9,3.40941578]
[1753176407691,0.1,195.95,195.91,3.40941578]
[1753176407882,11.2185795,195.94,195.92,3.40941578]
[1753176408078,11.2185795,195.94,195.93,3.40941578]